fUST/lending_fUST_20251105
["ID","MTS","AMOUNT","RATE_DAILY","PERIOD"]
[393164586,1762289516257,-500.0,0.00044383,120]
[393164587,1762289516267,-500.0,0.00044383,120]
[393164588,1762289516278,-500.0,0.00044383,120]
[393164589,1762289516287,-500.0,0.00044383,120]
[393164590,1762289516296,-500.0,0.00044383,120]
[393164591,1762289516305,-500.0,0.00044383,120]
[393164592,1762289516316,-500.0,0.00044383,120]
[393164593,1762289516326,-2300.67,0.00044383,40]
[393164594,1762289516335,-500.0,0.00044383,120]
[393164595,1762289516345,-500.0,0.00044383,120]
[393164596,1762289516354,-500.0,0.00044383,120]
[393164597,1762289516365,-723.1792187,0.00044412,30]
[393164598,1762289516374,-284.98,0.00044438,120]
[393164599,1762289516384,-571.12581821,0.00044487,60]
[393164600,1762289516393,-284.98,0.00044538,120]
[393164601,1762289516403,-299.6635978,0.00044549,30]
[393164602,1762289516412,-299.6635978,0.00044549,30]
[393164603,1762289516422,-190.8362626,0.00044549,30]
[393164604,1762289516431,-153.0,0.00044549,30]
[393164605,1762289516441,-299.0550086,0.00044549,30]
[393164606,1762289516450,-190.8362626,0.00044549,30]
[393164607,1762289516460,-153.0,0.00044549,30]
[393164608,1762289516469,-297.8851395,0.00044549,30]
[393164609,1762289516479,-153.0,0.00044549,30]
[393164610,1762289516488,-160.0,0.00044601,7]
[393164611,1762289516497,-284.98,0.00044638,120]
[393164612,1762289516507,-284.98,0.00044738,120]
[393164613,1762289516516,-153.0,0.00044823,30]
[393164614,1762289516526,-153.0,0.00044823,30]
[393164615,1762289516535,-153.0,0.00044823,30]
[393164616,1762289516544,-284.98,0.00044838,120]
[393164617,1762289516554,-155.0,0.00044877,90]
[393164618,1762289516563,-1009.63262502,0.000449,120]
[393164619,1762289516572,-200.0,0.000449,120]
[393164620,1762289516582,-200.0,0.000449,120]
[393164621,1762289516592,-1000.0,0.00044931,90]
[393164622,1762289516601,-10396.4,0.00044931,2]
[393164623,1762289516611,-500.0,0.00044931,120]
[393164624,1762289516621,-500.0,0.00044931,120]
[393164625,1762289516630,-500.0,0.00044931,120]
[393164626,1762289516640,-500.0,0.00044931,120]
[393164627,1762289516649,-500.0,0.00044931,120]
[393164628,1762289516659,-500.0,0.00044931,120]
[393164629,1762289516668,-500.0,0.00044931,120]
[393164630,1762289516678,-500.0,0.00044931,120]
[393164631,1762289516687,-500.0,0.00044931,120]
[393164632,1762289516699,-500.0,0.00044931,120]
[393164633,1762289516709,-500.0,0.00044931,120]
[393164634,1762289516718,-500.0,0.00044931,120]
[393164635,1762289516728,-500.0,0.00044931,120]
[393164636,1762289516738,-571.48658249,0.00044931,120]
[393164637,1762289516747,-500.0,0.00044931,120]
[393164638,1762289516757,-653.7,0.00044931,120]
[393164639,1762289516767,-500.0,0.00044931,120]
[393164640,1762289516780,-500.0,0.00044931,120]
[393164641,1762289516790,-500.0,0.00044931,120]
[393164642,1762289516800,-500.0,0.00044931,120]
[393164643,1762289516810,-500.0,0.00044931,120]
[393164644,1762289516821,-500.0,0.00044931,120]
[393164645,1762289516831,-505.0143081,0.00044931,120]
[393164646,1762289516842,-504.79351827,0.00044931,120]
[393164647,1762289516854,-500.0,0.00044931,120]
[393164648,1762289516864,-500.0,0.00044931,120]
[393164649,1762289516874,-500.0,0.00044931,2]
[393164650,1762289516884,-500.0,0.00044931,120]
[393164651,1762289516894,-509.52853568,0.00044931,120]
[393164652,1762289516904,-500.0,0.00044931,120]
[393164653,1762289516914,-500.0,0.00044931,120]
[393164654,1762289516924,-500.0,0.00044931,120]
[393164655,1762289516933,-500.0,0.00044931,120]
[393164656,1762289516944,-510.105169,0.00044931,120]
[393164657,1762289516956,-500.0,0.00044931,120]
[393164658,1762289516966,-501.99058739,0.00044931,120]
[393164659,1762289516975,-455.71637442,0.00044931,120]
[393164660,1762289516986,-500.0,0.00044931,120]
[393164661,1762289516995,-500.0,0.00044931,120]
[393164662,1762289517006,-500.0,0.00044931,120]
[393164663,1762289517016,-500.0,0.00044931,120]
[393164664,1762289517025,-282.57713661,0.00044931,120]
[393164665,1762289517267,-217.42286339,0.00044931,120]
[393164666,1762289517277,-500.0,0.00044931,120]
[393164667,1762289517287,-500.0,0.00044931,120]
[393164668,1762289517297,-500.0,0.00044931,120]
[393164669,1762289517306,-500.0,0.00044931,120]
[393164670,1762289517315,-500.0,0.00044931,120]
[393164671,1762289517325,-502.95680652,0.00044931,120]
[393164672,1762289517334,-500.0,0.00044931,120]
[393164673,1762289517344,-500.0,0.00044931,120]
[393164674,1762289517354,-500.0,0.00044931,120]
[393164675,1762289517363,-500.0,0.00044931,120]
[393164676,1762289517373,-167.74940307,0.00044931,120]
[393164677,1762289517380,-500.0,0.00044931,7]
[393164678,1762289517388,-500.0,0.00044931,120]
[393164679,1762289517398,-500.0,0.00044931,120]
[393164680,1762289517407,-500.0,0.00044931,120]
[393164681,1762289517416,-500.0,0.00044931,120]
[393164682,1762289517426,-500.0,0.00044931,120]
[393164683,1762289517435,-500.0,0.00044931,120]
[393164684,1762289517444,-510.27735353,0.00044931,120]
[393164685,1762289517455,-500.0,0.00044931,120]
[393164686,1762289517465,-503.43200218,0.00044931,120]
[393164687,1762289517475,-571.39920647,0.00044931,120]
[393164688,1762289517484,-500.0,0.00044931,120]
[393164689,1762289517494,-500.0,0.00044931,120]
[393164690,1762289517503,-500.0,0.00044931,120]
[393164691,1762289517513,-453.33157187,0.00044931,120]
[393164692,1762289518163,-500.0,0.00019259,2]
[393164693,1762289518172,-500.0,0.00019259,2]
[393164694,1762289518182,-500.0,0.00019259,2]
[393164695,1762289518191,-500.0,0.00019259,2]
[393164696,1762289518202,-500.0,0.00019259,2]
[393164697,1762289518211,-500.0,0.00019259,2]
[393164698,1762289518220,-500.0,0.00019259,2]
[393164699,1762289518230,-500.0,0.00019259,2]
[393164700,1762289518239,-500.0,0.00019259,2]
[393164701,1762289518248,-500.0,0.00019259,2]
[393164702,1762289518257,-500.0,0.00019259,2]
[393164703,1762289518267,-500.0,0.00019259,2]
[393164704,1762289518276,-500.0,0.00019259,2]
[393164705,1762289518285,-500.0,0.00019259,2]
[393164706,1762289518294,-500.0,0.00019259,2]
[393164707,1762289518303,-500.0,0.00019259,2]
[393164708,1762289518313,-500.0,0.00019259,2]
[393164709,1762289518322,-500.0,0.00019259,2]
[393164710,1762289518331,-500.0,0.00019259,2]
[393164711,1762289518341,-500.0,0.00019259,2]
[393164712,1762289518350,-500.0,0.00019259,2]
[393164713,1762289518359,-518.71146138,0.00019259,2]
[393164714,1762289518518,-500.0,0.00019259,2]
[393164715,1762289518528,-500.0,0.00019259,2]
[393164716,1762289518537,-500.0,0.00019259,2]
[393164717,1762289518547,-500.0,0.00019259,2]
[393164718,1762289518556,-500.0,0.00019259,2]
[393164719,1762289518566,-500.0,0.00019259,2]
[393164720,1762289518575,-500.0,0.00019259,2]
[393164721,1762289518584,-500.0,0.00019259,2]
[393164722,1762289518594,-500.0,0.00019259,2]
[393164723,1762289518603,-500.0,0.00019259,2]
[393164724,1762289518612,-500.0,0.00019259,2]
[393164725,1762289518622,-500.0,0.00019259,2]
[393164726,1762289518632,-500.0,0.00019259,2]
[393164727,1762289518642,-500.0,0.00019259,2]
[393164728,1762289518651,-376.6137563,0.00019259,2]
[393164729,1762289518661,-500.0,0.00019259,2]
[393164730,1762289518670,-500.0,0.00019259,2]
[393164731,1762289518679,-500.0,0.00019259,2]
[393164732,1762289518689,-500.0,0.00019259,2]
[393164733,1762289518698,-500.0,0.00019259,2]
[393164734,1762289518709,-500.0,0.00019259,2]
[393164735,1762289518719,-423.47338232,0.00019259,2]
[393164736,1762289523507,720.0,0.00021608,20]
[393164741,1762289582859,200000.0,0.00037798,120]
[393164742,1762289583862,200000.0,0.00037798,120]
[393164743,1762289584780,157488.293584,0.00037798,120]
[393164744,1762289586079,181684.93772046,0.00019161,2]
[393164745,1762289606475,150.0,0.00016737,2]
[393164746,1762289676110,172.44,0.000224,14]
[393164747,1762289687634,1101.09,0.000224,7]
[393164748,1762289697364,3285.3988314,0.00019103,2]
[393164749,1762289704544,1912.75,0.00019151,3]
[393164750,1762289705471,615.58799556,0.00019103,2]
[393164751,1762289714197,5000.0,0.00019103,2]
[393164752,1762289715633,956.37,0.00019151,3]
[393164753,1762289726450,478.19,0.00019151,3]
[393164754,1762289737222,239.09,0.00019151,3]
[393164755,1762289737344,2111.67492311,0.00019103,2]
[393164756,1762289748478,717.32,0.00019151,3]
[393164757,1762289784395,367.376672,0.00013699,2]
[393164759,1762289792877,1789.60593387,0.0001906,2]
[393164760,1762289809480,172.44,0.000224,14]
[393164761,1762289822603,880.87,0.000224,7]
[393164762,1762289914734,306.95918273,0.000229,4]
[393164763,1762289942855,172.44,0.000224,14]
[393164764,1762289959101,792.79,0.000224,7]
[393164765,1762290016113,1195.46,0.00019151,3]
[393164766,1762290026851,597.73,0.00019151,3]
[393164767,1762290037960,298.87,0.00019151,3]
[393164768,1762290041813,215.9147286,0.00018878,2]
[393164769,1762290048769,896.62,0.00019151,3]
[393164770,1762290063186,1565.90519211,0.00019059,2]
[393164771,1762290075516,172.45,0.000224,14]
[393164772,1762290095627,713.51,0.000224,7]
[393164773,1762290103697,418.273,0.00018778,2]
[393164774,1762290232063,642.16,0.000224,7]
[393164775,1762290286718,-416.93986984,0.00019159,2]
[393164776,1762290331829,-150.0,0.0001916,2]
[393164777,1762290331850,-145.65083846,0.0001916,2]
[393164778,1762290333686,1370.16704307,0.0001906,2]
[393164779,1762290334572,-115.34916154,0.0001916,2]
[393164780,1762290334595,-181.54575965,0.0001916,2]
[393164781,1762290368406,577.94,0.000224,7]
[393164782,1762290504427,520.15,0.000224,7]
[393164784,1762290603957,1198.89616273,0.0001906,2]
[393164785,1762290626239,697.35,0.00019151,3]
[393164895,1762290636619,-21805.01518895,0.0001916,2]
[393164896,1762290636629,-150.0,0.0001916,2]
[393164897,1762290636640,-191.29340253,0.0001916,2]
[393164898,1762290636649,-500.0,0.0001916,2]
[393164899,1762290636659,-500.0,0.0001916,2]
[393164900,1762290636669,-500.0,0.0001916,2]
[393164901,1762290636678,-500.0,0.0001916,2]
[393164902,1762290636687,-500.0,0.0001916,2]
[393164904,1762290636697,-500.0,0.0001916,2]
[393164906,1762290636706,-500.0,0.0001916,2]
[393164908,1762290636715,-500.0,0.0001916,2]
[393164910,1762290636724,-500.0,0.0001916,2]
[393164912,1762290636733,-500.0,0.0001916,2]
[393164914,1762290636742,-500.0,0.0001916,2]
[393164916,1762290636751,-500.0,0.0001916,2]
[393164918,1762290636760,-500.0,0.0001916,2]
[393164920,1762290636770,-500.0,0.0001916,2]
[393164922,1762290636779,-500.0,0.0001916,2]
[393164924,1762290636788,-373.96057702,0.0001916,2]
[393164925,1762290636798,-500.0,0.0001916,2]
[393164926,1762290636808,-500.0,0.0001916,2]
[393164927,1762290636818,-500.0,0.0001916,2]
[393164928,1762290636827,-336.90162375,0.0001916,2]
[393164929,1762290636836,-500.0,0.0001916,2]
[393164930,1762290636848,-500.0,0.0001916,2]
[393164931,1762290636857,-500.0,0.0001916,2]
[393164932,1762290636867,-500.0,0.0001916,2]
[393164933,1762290636876,-500.0,0.0001916,2]
[393164934,1762290636886,-500.0,0.0001916,2]
[393164935,1762290636895,-500.0,0.0001916,2]
[393164936,1762290636907,-500.0,0.0001916,2]
[393164937,1762290636917,-500.0,0.0001916,2]
[393164938,1762290636926,-500.0,0.0001916,2]
[393164939,1762290636938,-500.0,0.0001916,2]
[393164940,1762290636948,-500.0,0.0001916,2]
[393164941,1762290636958,-500.0,0.0001916,2]
[393164942,1762290636968,-500.0,0.0001916,2]
[393164943,1762290636978,-500.0,0.0001916,2]
[393164944,1762290636987,-500.0,0.0001916,2]
[393164945,1762290636996,-500.0,0.0001916,2]
[393164946,1762290637006,-500.0,0.0001916,2]
[393164947,1762290637016,-500.0,0.0001916,2]
[393164948,1762290637026,-500.0,0.0001916,2]
[393164949,1762290637035,-500.0,0.0001916,2]
[393164950,1762290637045,-500.0,0.0001916,2]
[393164951,1762290637055,-500.0,0.0001916,2]
[393164952,1762290637065,-500.0,0.0001916,2]
[393164953,1762290637075,-500.0,0.0001916,2]
[393164954,1762290637084,-500.0,0.0001916,2]
[393164955,1762290637096,-500.0,0.0001916,2]
[393164956,1762290637105,-500.0,0.0001916,2]
[393164957,1762290637114,-500.0,0.0001916,2]
[393164958,1762290637124,-500.0,0.0001916,2]
[393164959,1762290637133,-500.0,0.0001916,2]
[393164960,1762290637150,-500.0,0.0001916,2]
[393164961,1762290637160,-500.0,0.0001916,2]
[393164962,1762290637170,-500.0,0.0001916,2]
[393164963,1762290637181,-500.0,0.0001916,2]
[393164964,1762290637191,-500.0,0.0001916,2]
[393164965,1762290637201,-500.0,0.0001916,2]
[393164966,1762290637211,-500.0,0.0001916,2]
[393164967,1762290637220,-500.0,0.0001916,2]
[393164968,1762290637230,-500.0,0.0001916,2]
[393164969,1762290637240,-500.0,0.0001916,2]
[393164970,1762290637250,-426.32240264,0.0001916,2]
[393164971,1762290637259,-500.0,0.0001916,2]
[393164972,1762290637269,-500.0,0.0001916,2]
[393164973,1762290637279,-500.0,0.0001916,2]
[393164974,1762290637288,-366.6137563,0.0001916,2]
[393164975,1762290637297,-500.0,0.0001916,2]
[393164976,1762290637306,-500.0,0.0001916,2]
[393164977,1762290637316,-500.0,0.0001916,2]
[393164978,1762290637325,-500.0,0.0001916,2]
[393164979,1762290637334,-500.0,0.0001916,2]
[393164980,1762290637344,-500.0,0.0001916,2]
[393164981,1762290637354,-500.0,0.0001916,2]
[393164982,1762290637364,-500.0,0.0001916,2]
[393164983,1762290637374,-500.0,0.0001916,2]
[393164984,1762290637383,-500.0,0.0001916,2]
[393164985,1762290637393,-500.0,0.0001916,2]
[393164986,1762290637405,-500.0,0.0001916,2]
[393164987,1762290637414,-500.0,0.0001916,2]
[393164988,1762290637424,-500.0,0.0001916,2]
[393164989,1762290637433,-500.0,0.0001916,2]
[393164990,1762290637442,-500.0,0.0001916,2]
[393164991,1762290637452,-500.0,0.0001916,2]
[393164992,1762290637461,-500.0,0.0001916,2]
[393164993,1762290637471,-500.0,0.0001916,2]
[393164994,1762290637483,-500.0,0.0001916,2]
[393164995,1762290637492,-500.0,0.0001916,2]
[393164996,1762290637502,-500.0,0.0001916,2]
[393164997,1762290637512,-500.0,0.0001916,2]
[393164998,1762290637522,-500.0,0.0001916,2]
[393164999,1762290637532,-230352.416035,0.00019161,2]
[393165000,1762290637546,-2603.87102644,0.00019161,2]
[393165001,1762290637581,348.67,0.00019151,3]
[393165021,1762290638185,-4010.73359936,0.00019161,2]
[393165022,1762290638198,-8750.83438913,0.00019161,2]
[393165023,1762290638210,-13613.57071228,0.00019161,2]
[393165024,1762290638221,-11784.38502579,0.00019161,2]
[393165049,1762290640384,-136059.91097111,0.00019161,2]
[393165056,1762290640444,-5320.85,0.00019161,2]
[393165064,1762290640505,-10032.0964744,0.00019161,2]
[393165097,1762290640810,468.13,0.000224,7]
[393165365,1762290643570,-49231.36675677,0.00019161,2]
[393165666,1762290646520,-31555.02728926,0.00019161,2]
[393165668,1762290646530,-300.0,0.00019643,2]
[393165671,1762290646540,-300.0,0.00019643,2]
[393165673,1762290646550,-300.0,0.00019643,2]
[393165675,1762290646559,-300.0,0.00019643,2]
[393165677,1762290646569,-300.0,0.00019643,2]
[393165679,1762290646578,-300.0,0.00019643,2]
[393165681,1762290646588,-300.0,0.00019643,2]
[393165683,1762290646596,-300.0,0.00019643,2]
[393165685,1762290646606,-300.0,0.00019643,2]
[393165687,1762290646615,-300.0,0.00019643,2]
[393165689,1762290646625,-300.0,0.00019643,2]
[393165691,1762290646634,-300.0,0.00019643,2]
[393165693,1762290646644,-300.0,0.00019643,2]
[393165695,1762290646654,-300.0,0.00019643,2]
[393165697,1762290646664,-300.0,0.00019643,2]
[393165699,1762290646673,-600.0,0.00019643,2]
[393165701,1762290646682,-367.376672,0.00020187,2]
[393165702,1762290646691,-1394.7,0.00020521,3]
[393165703,1762290646700,-697.34,0.00020521,3]
[393165704,1762290646710,-177.0,0.0002116,2]
[393165705,1762290646719,-168.0,0.00022313,2]
[393165706,1762290646728,-168.0,0.00022456,2]
[393165707,1762290646737,-168.0,0.00022741,2]
[393165708,1762290646747,-168.0,0.00022924,2]
[393165709,1762290646755,-168.0,0.00022984,2]
[393165710,1762290646765,-163.0,0.00023,7]
[393165711,1762290646774,-168.0,0.00023014,2]
[393165712,1762290646783,-204.0,0.0002316,2]
[393165713,1762290646793,-168.0,0.00023185,2]
[393165714,1762290646802,-168.0,0.00023441,2]
[393165715,1762290646812,-864.0,0.00023768,20]
[393165716,1762290646821,-168.0,0.00023933,2]
[393165717,1762290646831,-1602.0,0.00024,60]
[393165718,1762290646840,-1198.89616267,0.00024101,2]
[393165719,1762290646851,-168.0,0.00024249,2]
[393165720,1762290646860,-151.0,0.000243,9]
[393165721,1762290646869,-168.0,0.00024366,2]
[393165722,1762290646879,-209.85,0.000247,2]
[393165723,1762290646889,-201.33671306,0.000248,2]
[393165724,1762290646898,-344.07,0.0002489,10]
[393165725,1762290646907,-54568.50400212,0.000249,2]
[393165726,1762290646919,-5686.40767407,0.000249,2]
[393165729,1762290646996,-32858.57966429,0.000249,2]
[393165730,1762290647009,-1698.0254269,0.000249,2]
[393165731,1762290647030,-1133.8,0.000249,2]
[393165732,1762290647042,-12590.75898814,0.000249,2]
[393165828,1762290713376,206.04539043,0.0001906,2]
[393165829,1762290773335,113955.62709309,0.00019061,2]
[393165830,1762290782362,-351.1413626,0.00019061,2]
[393165831,1762290785138,-574.96666339,0.00019061,2]
[393165832,1762290788937,-297.5604714,0.00019061,2]
[393165833,1762290791068,-355.10921894,0.00019061,2]
[393165834,1762290793262,-245.61197925,0.00019061,2]
[393165835,1762290795396,-345.88843824,0.00019061,2]
[393165836,1762290796364,720.0,0.00021385,20]
[393165837,1762290811794,-215.79460417,0.00019061,2]
[393165838,1762290813385,-294.85211517,0.00019061,2]
[393165839,1762290815257,-281.18337227,0.00019061,2]
[393165840,1762290816673,-433.60735274,0.00019061,2]
[393165841,1762290819546,-182.47820774,0.00019061,2]
[393165842,1762290822282,-204.41859723,0.00019061,2]
[393165843,1762290823839,-157.60028748,0.00019061,2]
[393165844,1762290826522,-178.80650368,0.00019061,2]
[393165846,1762290828898,-172.03165665,0.00019061,2]
[393165847,1762290831532,-426.480388,0.00019061,2]
[393165848,1762290843435,285.99574198,0.000229,4]
[393165849,1762290905548,468.13,0.000221,7]
[393165850,1762290915807,164.0,0.0002519,120]
[393165851,1762290917144,164.0,0.0002645,120]
[393165852,1762290918482,164.0,0.00027772,120]
[393165853,1762290919830,164.0,0.00029161,120]
[393165854,1762291040432,374.51,0.000221,7]
[393165855,1762291152100,197.202353,0.00030137,120]
[393165856,1762291176589,337.05,0.000221,7]
[393165857,1762291181070,1559.71072991,0.0001906,5]
[393165858,1762291216076,156.54766963,0.00037741,20]
[393165859,1762291224837,174.34,0.00019051,3]
[393165860,1762291235907,523.04,0.00019051,3]
[393165861,1762291303611,334.619,0.0001868,2]
[393165862,1762291305703,-176.96052922,0.0001896,2]
[393165863,1762291313045,303.35,0.00022,7]
[393165864,1762291362886,3304.6126037,0.0001806,2]
[393165865,1762291381776,-290.87558441,0.0001896,2]
[393165866,1762291448941,273.01,0.00022,7]
[393165868,1762291585356,245.71,0.000221,7]
[393165869,1762291606858,-346.12002061,0.0001896,2]
[393165871,1762291636794,-234.31441551,0.0001896,2]
[393165872,1762291639589,-260.25817174,0.0001896,2]
[393165873,1762291639612,-41.08448377,0.00018973,2]
[393165874,1762291641378,-242.09724544,0.00018973,2]
[393165875,1762291643191,2090202.30892334,0.00037741,20]
[393165876,1762291646779,-445.87007891,0.00018973,2]
[393165877,1762291649025,-195.08191351,0.00018973,2]
[393165878,1762291650644,-300.0,0.00018973,2]
[393165879,1762291667329,-115.90053066,0.00018973,2]
[393165880,1762291667352,-224.64341457,0.00018973,2]
[393165881,1762291667376,-150.0,0.00018977,2]
[393165882,1762291667402,-11.02179206,0.00018995,2]
[393165883,1762291669479,-223.05811855,0.00018995,2]
[393165885,1762291670356,458.97025858,0.0003,120]
[393165886,1762291673361,-162.51335656,0.00018995,2]
[393165887,1762291677297,-181.11831423,0.00018995,2]
[393165888,1762291679400,-335.05482319,0.00018995,2]
[393165889,1762291681466,-301.82713422,0.00018995,2]
[393165891,1762291697488,-125.44071348,0.00018995,2]
[393165892,1762291697513,-214.60578616,0.00019017,2]
[393165894,1762291723613,221.14,0.000222,7]
[393165895,1762291727090,-273.85012349,0.00019017,2]
[393165896,1762291729790,-155.93364418,0.00019017,2]
[393165897,1762291733374,-245.51880397,0.00019017,2]
[393165898,1762291735551,-442.69841495,0.00019017,2]
[393165899,1762291741064,-7.42747954,0.00019017,2]
[393165900,1762291741092,-179.67050792,0.00019038,2]
[393165901,1762291756757,-164.16705366,0.00019038,2]
[393165902,1762291760071,-168.46301276,0.00019038,2]
[393165903,1762291765041,-160.51773996,0.00019038,2]
[393165904,1762291768035,-162.05304248,0.00019038,2]
[393165905,1762291770859,-180.98460447,0.00019038,2]
[393165906,1762291786726,-201.30505731,0.00019038,2]
[393165913,1762291822626,348.68,0.00019051,3]
[393166158,1762291837212,-1005.0,0.0001886,2]
[393166232,1762291838503,-2410.37178069,0.0001886,2]
[393166233,1762291838516,-376.80950392,0.0001886,2]
[393166234,1762291838527,-735.60603186,0.0001896,2]
[393166235,1762291838537,-256.0,0.0001896,2]
[393166236,1762291838547,-122.87323373,0.00019038,2]
[393166237,1762291838557,-150.0,0.00019049,2]
[393166238,1762291838567,-1200.0,0.00019059,2]
[393166239,1762291838577,-521.0,0.00019059,2]
[393166240,1762291838587,-1340.03425229,0.0001906,2]
[393166241,1762291838597,-8624.04497821,0.0001906,2]
[393166288,1762291841043,-3e-08,0.0001906,2]
[393166289,1762291841138,-4447.47635087,0.0001906,2]
[393166290,1762291841149,-3763.03265819,0.0001906,2]
[393166342,1762291846770,-15227.52742854,0.0001906,2]
[393166343,1762291846780,-260.98741353,0.0001906,2]
[393166344,1762291846789,-500.0,0.0001906,2]
[393166345,1762291846798,-500.0,0.0001906,2]
[393166346,1762291846808,-500.0,0.0001906,2]
[393166347,1762291846817,-500.0,0.0001906,2]
[393166348,1762291846826,-500.0,0.0001906,2]
[393166349,1762291846835,-500.0,0.0001906,2]
[393166350,1762291846845,-500.0,0.0001906,2]
[393166351,1762291846854,-152.66228634,0.0001906,2]
[393166352,1762291846864,-436.66137563,0.0001906,2]
[393166353,1762291846873,-376.32323724,0.0001906,2]
[393166354,1762291846885,-548270.30206083,0.00019061,2]
[393166355,1762291846896,-656.16275011,0.00019061,2]
[393166360,1762291849689,283.64,0.00021641,10]
[393166361,1762291862356,236.36,0.00021641,10]
[393166362,1762291872744,290.03,0.000212,10]
[393166363,1762291876845,-499.99999997,0.00019061,2]
[393166364,1762291879001,-449.90912133,0.00019061,2]
[393166365,1762291884262,-500.0,0.00019061,2]
[393166366,1762291884832,241.69,0.00021641,10]
[393166367,1762291885883,-500.0,0.00019061,2]
[393166368,1762291887750,-274.73157093,0.00019061,2]
[393166369,1762291898233,201.41,0.0002199,10]
[393166370,1762291907898,-167.17139494,0.0001906,2]
[393166371,1762291910047,-312.82575952,0.0001906,2]
[393166372,1762291912161,-20.00284554,0.0001906,2]
[393166373,1762291912191,-144.79866406,0.0001906,2]
[393166374,1762291915497,-219.13591673,0.0001906,2]
[393166375,1762291918943,-136.06541921,0.0001906,2]
[393166376,1762291918971,-342.62345985,0.0001906,2]
[393166377,1762291926374,345.00942386,0.00019964,5]
[393166378,1762291929781,1380.03769544,0.00020924,5]
[393166379,1762291933846,839.23,0.00022859,10]
[393166380,1762291936720,-243.58227326,0.00019059,2]
[393166381,1762291939087,-56.41772674,0.00019059,2]
[393166382,1762291939113,-157.37654015,0.0001906,2]
[393166383,1762291939137,-8.57846399,0.0001906,2]
[393166384,1762291939384,150.0,0.00016694,2]
[393166385,1762291939842,150.0,0.00018211,2]
[393166386,1762291941171,-383.65155982,0.0001906,2]
[393166387,1762291943427,-107.76997619,0.0001906,2]
[393166388,1762291943459,-62.53684632,0.0001906,2]
[393166389,1762291946070,-156.56208986,0.0001906,2]
[393166390,1762291948281,-188.62213729,0.0001906,2]
[393166391,1762291951019,-92.27892653,0.0001906,2]
[393166392,1762291951043,-80.05499593,0.0001906,2]
[393166393,1762291968100,-430.88244695,0.0001906,2]
[393166394,1762292006885,150.0,0.00016927,2]
[393166395,1762292007306,150.0,0.00018465,2]
[393166396,1762292024782,928.23508049,0.00019964,5]
[393166397,1762292030716,3712.94032196,0.00020924,5]
[393166398,1762292073076,150.0,0.00017031,2]
[393166399,1762292074346,477.27090035,0.00020819,6]
[393166400,1762292110596,281.8,0.00022,7]
[393166406,1762292245952,263.4,0.00022,7]
[393166407,1762292249810,-257.29924645,0.0001896,2]
[393166408,1762292249831,-206.0815611,0.00019,2]
[393166409,1762292249852,-206.0815611,0.00019,2]
[393166410,1762292249872,-206.0815611,0.00019,2]
[393166411,1762292249897,-150.0,0.0001901,2]
[393166412,1762292249917,-300.0,0.00019058,2]
[393166413,1762292249936,-274.0,0.00019059,2]
[393166414,1762292249956,-300.0,0.00019059,2]
[393166415,1762292249976,-300.0,0.00019059,2]
[393166416,1762292249996,-300.0,0.00019059,2]